bitfinex-derivatives/quotes_SOLF0:USTF0_20251018
["timestamp","ask_amount","ask_price","bid_price","bid_amount"]
[1760778857988,2.88,185.61,185.57,2.74]
[1760778858382,2.87413193,185.62,185.57,2.74]
[1760778858790,2.87413193,185.62,185.56,4.8482]
[1760778859085,5.75413193,185.59,185.56,4.8482]
[1760778860997,5.75413193,185.59,185.56,7.5882]
[1760778861297,2.87413193,185.59,185.53,44.76]
[1760778861493,2.88,185.58,185.53,44.76]
[1760778861890,2.87413193,185.59,185.53,44.76]
[1760778862086,2.88,185.58,185.53,44.76]
[1760778862287,5.75413193,185.59,185.53,44.76]
[1760778863800,5.75413193,185.59,185.53,49.6089]
[1760778864300,5.75413193,185.59,185.54,2.74]
[1760778864500,16.05632848,185.69,185.54,2.74]
[1760778864699,2.87413193,185.61,185.54,2.74]
[1760778864889,5.00414902,185.6,185.54,2.74]
[1760778865093,2.87413193,185.61,185.54,2.74]
[1760778865299,5.00450035,185.6,185.54,2.74]
[1760778865496,5.00450035,185.59,185.54,2.74]
[1760778865698,2.87413193,185.61,185.54,2.74]
[1760778865899,5.00508767,185.6,185.54,2.74]
[1760778866199,5.00508767,185.59,185.54,7.5886]
[1760778866495,2.83,185.6,185.54,7.5886]
[1760778866798,2.83,185.58,185.54,7.5886]
[1760778866999,2.83,185.58,185.54,4.8486]
[1760778867300,2.83,185.58,185.55,2.74]
[1760778867492,2.87413193,185.61,185.56,2.74]
[1760778867694,2.83,185.59,185.56,2.74]
[1760778868489,2.83,185.63,185.54,44.76]
[1760778868793,5.00900281,185.62,185.59,2.74]
[1760778868999,5.01028156,185.61,185.6,2.74]
[1760778869402,2.83,185.63,185.6,2.74]
[1760778869593,5.01094541,185.62,185.6,2.74]
[1760778869795,2.83,185.63,185.6,2.74]
[1760778869995,5.01235048,185.62,185.6,2.74]
[1760778870196,2.83,185.63,185.56,7.5882]
[1760778870391,9.92596557,185.77,185.6,2.74]
[1760778870603,13.66605217,185.76,185.64,2.74]
[1760778870798,8.65194147,185.75,185.64,2.74]
[1760778871104,8.65194147,185.74,185.64,2.74]
[1760778871300,8.65194147,185.73,185.64,2.74]
[1760778871497,4.49450144,185.72,185.69,2.87413193]
[1760778871797,150.40455066,185.82,185.7,2.74]
[1760778872000,13.49184938,185.81,185.73,2.87413193]
[1760778872198,8.65014938,185.8,185.73,2.87413193]
[1760778872404,8.65014938,185.79,185.73,7.71773193]
[1760778872604,150.40455066,185.82,185.76,2.87413193]
[1760778872905,4.15332674,185.81,185.76,2.87413193]
[1760778873104,4.15332674,185.8,185.76,2.87413193]
[1760778873403,4.14872487,185.79,185.65,2.74]
[1760778873702,8.25212802,185.78,185.66,2.87413193]
[1760778873895,4.8431,185.76,185.66,2.87413193]
[1760778874095,4.14872487,185.75,185.66,2.87413193]
[1760778874299,4.8431,185.76,185.66,7.71953193]
[1760778874501,4.14670234,185.75,185.66,4.8454]
[1760778874800,4.8431,185.76,185.68,7.71923193]
[1760778875000,4.14670718,185.75,185.68,10.45923193]
[1760778875195,4.8431,185.76,185.68,10.45923193]
[1760778875401,4.1016873,185.78,185.68,10.45923193]
[1760778875607,4.8425,185.79,185.68,10.45923193]
[1760778875608,4.14545625,185.77,185.71,2.87413193]
[1760778875803,4.14545625,185.76,185.71,5.61413193]
[1760778876003,4.8425,185.79,185.71,5.61413193]
[1760778876206,4.1467714,185.78,185.71,5.61413193]
[1760778876406,4.1467714,185.77,185.71,5.61413193]
[1760778876603,4.1467714,185.76,185.71,5.61413193]
[1760778876804,4.8425,185.79,185.71,5.61413193]
[1760778877007,4.14629725,185.78,185.71,5.61413193]
[1760778877205,4.8425,185.79,185.71,5.61413193]
[1760778877206,4.14629725,185.77,185.71,5.61413193]
[1760778877405,4.14629725,185.76,185.71,5.61413193]
[1760778877604,4.8425,185.79,185.71,2.74]
[1760778877808,195.28455066,185.82,185.7,2.87413193]
[1760778877809,4.8428,185.77,185.7,2.87413193]
[1760778878009,4.1684445,185.76,185.7,2.87413193]
[1760778878209,4.8428,185.77,185.7,2.87413193]
[1760778878411,4.16731403,185.76,185.7,2.87413193]
[1760778878607,4.8428,185.77,185.7,2.87413193]
[1760778878820,4.16731655,185.76,185.62,7.5865]
[1760778879008,4.16731655,185.75,185.66,2.87413193]
[1760778879209,4.09889461,185.8,185.66,2.87413193]
[1760778879408,8.26541736,185.79,185.69,2.87413193]
[1760778879611,4.16652275,185.78,185.69,2.87413193]
[1760778879813,4.16652275,185.77,185.69,2.87413193]
[1760778880013,4.8434,185.75,185.69,2.87413193]
[1760778882410,9.02543488,185.74,185.66,5.61413193]
[1760778882609,4.8434,185.75,185.66,5.61413193]
[1760778882809,4.86074155,185.74,185.66,5.61413193]
[1760778883110,4.8434,185.75,185.66,5.61413193]
[1760778883416,4.86058185,185.74,185.66,5.61413193]
[1760778883709,4.07409936,185.78,185.66,5.61413193]
[1760778884017,9.02623256,185.77,185.66,5.61413193]
[1760778884216,9.02623256,185.76,185.66,5.61413193]
[1760778884415,9.02623256,185.75,185.66,5.61413193]
[1760778884614,9.02623256,185.74,185.66,5.61413193]
[1760778884814,4.86114448,185.73,185.66,5.61413193]
[1760778885117,4.8441,185.73,185.66,5.61413193]
[1760778888616,44.88,185.76,185.66,2.74]
[1760778888820,9.03088425,185.75,185.66,2.74]
[1760778889016,9.03088425,185.74,185.66,2.74]
[1760778889221,9.03088425,185.73,185.63,2.87413193]
[1760778889517,4.86356928,185.72,185.63,2.87413193]
[1760778889711,2.87413193,185.75,185.63,2.87413193]
[1760778889914,9.03206488,185.74,185.63,2.87413193]
[1760778890118,4.8445,185.71,185.63,7.72033193]
[1760778890514,4.8445,185.71,185.64,2.6]
[1760778892930,4.8445,185.71,185.64,5.47413193]
[1760778894723,4.8445,185.71,185.64,2.6]
[1760778894925,4.8445,185.71,185.64,5.47413193]
[1760778896025,2.87413193,185.75,185.64,2.6]
[1760778896229,53.75992097,185.74,185.64,2.6]
[1760778896433,53.75992097,185.73,185.64,2.6]
[1760778896631,8.91992097,185.72,185.64,2.6]
[1760778896924,44.84,185.72,185.64,2.6]
[1760778897233,4.8451,185.69,185.64,2.6]
[1760778899432,4.8451,185.69,185.65,2.6]
[1760778899624,4.8451,185.69,185.62,7.4466]
[1760778900326,47.71413193,185.72,185.58,5.47413193]
[1760778900525,13.00192144,185.71,185.58,5.47413193]
[1760778900728,8.92094202,185.7,185.58,5.47413193]
[1760778900924,8.92094202,185.69,185.58,5.47413193]
[1760778901126,8.92094202,185.68,185.58,5.47413193]
[1760778901328,1.83792202,185.66,185.58,4.43792202]
[1760778901931,1.83792202,185.64,185.56,1.83792202]
[1760778902526,4.0820923,185.68,185.58,1.83792202]
[1760778902732,1.83792202,185.66,185.58,1.83792202]
[1760778902934,8.92191462,185.65,185.57,4.43792202]
[1760778903233,4.8469,185.62,185.57,4.43792202]
[1760778906126,4.8469,185.62,185.57,2.6]
[1760778906329,4.8469,185.62,185.56,1.83792202]
[1760778906526,4.8469,185.62,185.56,4.43792202]
[1760778908135,4.8469,185.62,185.58,1.83792202]
[1760778908329,4.8469,185.62,185.59,2.74]
[1760778909737,4.8463,185.64,185.58,1.83792202]
[1760778910036,4.8463,185.64,185.58,4.57792202]
[1760778910429,46.65792202,185.66,185.59,2.74]
[1760778910430,4.8466,185.63,185.59,2.74]
[1760778910833,1.83792202,185.64,185.56,1.83792202]
[1760778911029,1.83792202,185.62,185.54,4.57792202]
[1760778911934,4.8474,185.6,185.54,4.57792202]
[1760778912438,4.8474,185.6,185.57,2.7]
[1760778914430,1.83792202,185.62,185.57,2.7]
[1760778914742,4.8476,185.59,185.54,1.83792202]
[1760778914931,1.83792202,185.58,185.49,2.7]
[1760778915134,4.8484,185.56,185.51,1.83792202]
[1760778915533,4.8484,185.56,185.52,2.7]
[1760778915730,6.68582202,185.58,185.53,1.83792202]
[1760778915930,1.83792202,185.64,185.57,1.83792202]
[1760778916240,6.01667451,185.67,185.59,4.53792202]
[1760778916440,4.74868546,185.66,185.59,4.53792202]
[1760778916641,1.83792202,185.67,185.59,4.53792202]
[1760778916840,4.74869096,185.66,185.59,4.53792202]
[1760778917041,4.8463,185.64,185.6,2.7]
[1760778917638,4.8463,185.64,185.61,1.83792202]
[1760778917837,4.8463,185.64,185.62,2.7]
[1760778919340,4.8463,185.64,185.61,1.83792202]
[1760778919644,4.8457,185.66,185.63,4.53792202]
[1760778920638,1.83792202,185.67,185.59,1.83792202]
[1760778920937,4.75093217,185.66,185.59,1.83792202]
[1760778921133,1.83792202,185.67,185.59,1.83792202]
[1760778921338,4.75163949,185.66,185.59,1.83792202]
[1760778921534,1.83792202,185.67,185.59,1.83792202]
[1760778921743,4.75186595,185.66,185.59,1.83792202]
[1760778921942,4.8464,185.64,185.58,2.7]
[1760778922339,1.83792202,185.63,185.58,2.7]
[1760778923345,1.83792202,185.63,185.56,2.7]
[1760778923954,6.68452202,185.63,185.56,2.7]
[1760778924954,1.83792202,185.61,185.55,4.8484]
[1760778925159,1.83792202,185.61,185.56,2.7]
[1760778925456,1.83792202,185.61,185.57,2.7]
[1760778927252,1.83792202,185.61,185.55,6.68632202]
[1760778927459,1.83792202,185.61,185.56,2.7]
[1760778927852,1.83792202,185.61,185.55,4.53792202]
[1760778928063,1.83792202,185.61,185.55,2.7]
[1760778928760,1.83792202,185.59,185.55,2.7]
[1760778929060,1.83792202,185.59,185.56,2.7]
[1760778930965,1.83792202,185.59,185.53,7.5489]
[1760778933059,1.83792202,185.59,185.53,4.8489]
[1760778933969,1.83792202,185.59,185.54,2.7]
[1760778934163,1.83792202,185.59,185.55,2.7]
[1760778934669,1.83792202,185.59,185.54,2.7]
[1760778934862,1.83792202,185.59,185.55,2.7]
[1760778935166,1.83792202,185.59,185.54,2.7]
[1760778935765,1.83792202,185.59,185.53,4.8489]
[1760778936263,1.83792202,185.59,185.55,2.7]
[1760778936466,1.83792202,185.59,185.54,2.7]
[1760778936664,1.83792202,185.57,185.52,2.7]
[1760778936866,1.83792202,185.57,185.53,2.7]
[1760778937269,1.83792202,185.55,185.53,2.7]
[1760778937568,1.83792202,185.57,185.49,1.83792202]
[1760778937762,6.68612202,185.57,185.51,1.83792202]
[1760778938570,6.68612202,185.57,185.52,2.7]
[1760778938772,6.68612202,185.57,185.51,1.83792202]
[1760778938970,6.68612202,185.57,185.52,2.7]
[1760778939269,6.68612202,185.57,185.51,1.83792202]
[1760778940067,6.68612202,185.57,185.52,2.7]
[1760778940269,6.68612202,185.57,185.51,1.83792202]
[1760778941571,6.68612202,185.57,185.52,2.73]
[1760778942172,6.68612202,185.57,185.51,1.83792202]
[1760778942776,6.68612202,185.57,185.52,2.73]
[1760778943169,6.68612202,185.57,185.51,6.68742202]
[1760778943573,4.8474,185.6,185.52,2.73]
[1760778943776,4.8474,185.6,185.47,62.0]
[1760778943777,8.99512608,185.59,185.53,1.83792202]
[1760778943970,8.99512608,185.58,185.53,1.83792202]
[1760778944170,4.80546925,185.57,185.53,1.83792202]
[1760778944478,1.83792202,185.6,185.53,4.56792202]
[1760778944776,9.00094497,185.59,185.53,4.56792202]
[1760778944979,4.19231854,185.58,185.54,2.73]
[1760778945177,4.8476,185.59,185.54,2.73]
[1760778945373,4.1921998,185.58,185.54,2.73]
[1760778945574,4.8476,185.59,185.53,4.56792202]
[1760778945775,4.1921998,185.58,185.53,1.83792202]
[1760778945976,4.8479,185.58,185.53,1.83792202]
[1760778946176,1.83792202,185.58,185.51,4.56792202]
[1760778946377,4.19187779,185.57,185.51,4.56792202]
[1760778946678,1.83792202,185.58,185.51,4.56792202]
[1760778946868,4.19212374,185.57,185.51,4.56792202]
[1760778947072,4.8484,185.56,185.52,2.73]
[1760778947777,4.8486,185.55,185.52,2.73]
[1760778950171,4.8481,185.57,185.51,6.68742202]
[1760778950372,1.83792202,185.6,185.53,1.83792202]
[1760778950572,9.00058792,185.59,185.53,1.83792202]
[1760778950773,9.00058792,185.58,185.54,2.73]
[1760778950971,4.97066455,185.62,185.56,2.73]
[1760778950972,1.83792202,185.62,185.56,2.73]
[1760778951177,9.00145799,185.61,185.55,4.56792202]
[1760778951378,10.83938001,185.6,185.55,2.73]
[1760778951680,9.00145799,185.59,185.54,2.73]
[1760778951987,1.83792202,185.6,185.54,2.73]
[1760778952273,9.00319839,185.59,185.54,2.73]
[1760778952478,1.83792202,185.6,185.54,2.73]
[1760778952681,9.00316791,185.59,185.53,1.83792202]
[1760778952876,1.83792202,185.6,185.54,2.73]
[1760778953080,9.00316641,185.59,185.53,9.41692202]
[1760778953270,1.83792202,185.6,185.53,7.579]
[1760778953472,9.00317935,185.59,185.53,7.579]
[1760778953679,1.83792202,185.6,185.53,7.579]
[1760778953876,4.8477,185.58,185.53,7.579]
[1760778954076,4.19302906,185.57,185.53,2.73]
[1760778954284,4.19302906,185.56,185.53,2.73]
[1760778954476,4.8481,185.57,185.53,2.73]
[1760778954778,4.19297527,185.56,185.53,2.73]
[1760778954979,4.8481,185.57,185.53,2.73]
[1760778955183,4.19236874,185.56,185.53,2.73]
[1760778955367,4.8481,185.57,185.53,2.73]
[1760778955571,4.19222042,185.56,185.53,2.73]
[1760778955774,4.8481,185.57,185.53,2.73]
[1760778955974,4.19222042,185.56,185.53,2.73]
[1760778956175,4.8481,185.57,185.53,2.73]
[1760778956470,9.04096817,185.56,185.52,4.56792202]
[1760778956674,4.8484,185.56,185.52,4.56792202]
[1760778959680,4.8484,185.56,185.53,2.73]
[1760778960377,4.8484,185.56,185.52,4.56792202]
[1760778960780,4.8484,185.56,185.53,2.73]
[1760778960981,4.8479,185.58,185.52,9.41712202]
[1760778961185,8.97322182,185.57,185.53,2.73]
[1760778961484,4.19233346,185.56,185.54,2.73]
[1760778961679,4.8473,185.6,185.54,2.73]
[1760778961986,8.97415881,185.59,185.54,2.73]
[1760778962182,4.19274794,185.58,185.54,2.73]
[1760778962386,4.8473,185.6,185.54,2.73]
[1760778962680,8.97507954,185.59,185.55,2.73]
[1760778962886,4.19329061,185.58,185.55,2.73]
[1760778963186,4.8473,185.6,185.54,10.45184689]
[1760778963386,8.9785654,185.59,185.55,2.73]
[1760778963582,4.19491902,185.58,185.54,7.72184689]
[1760778963884,4.8473,185.6,185.54,7.72184689]
[1760778964083,4.8468,185.62,185.55,2.73]
[1760778964282,8.97981284,185.61,185.55,2.73]
[1760778964587,8.97981284,185.6,185.55,2.73]
[1760778964786,9.81696455,185.64,185.58,2.73]
[1760778965081,13.08589316,185.63,185.57,2.87324689]
[1760778965282,8.98053835,185.62,185.58,2.73]
[1760778965489,9.81646455,185.66,185.58,2.73]
[1760778965682,13.08975848,185.65,185.58,2.73]
[1760778965881,8.98314277,185.64,185.58,2.73]
[1760778966188,8.98314277,185.63,185.57,5.60324689]
[1760778966390,8.98314277,185.62,185.56,2.87324689]
[1760778966683,8.98314277,185.61,185.57,2.73]
[1760778966887,8.9836355,185.6,185.56,2.87324689]
[1760778967087,4.97066455,185.64,185.57,2.73]
[1760778967282,17.93942769,185.63,185.57,7.5779]
[1760778967490,8.98498248,185.62,185.57,2.73]
[1760778967687,8.98498248,185.61,185.57,2.73]
[1760778967888,8.98498248,185.6,185.55,2.87324689]
[1760778968189,4.8466,185.63,185.56,2.73]
[1760778968390,8.97758118,185.62,185.56,2.73]
[1760778968587,8.97758118,185.61,185.55,2.87324689]
[1760778968787,8.97758118,185.6,185.56,2.73]
[1760778968988,4.8466,185.63,185.56,7.5781]
[1760778969188,8.97805337,185.62,185.56,7.5781]
[1760778969389,8.97805337,185.61,185.57,2.73]
[1760778969590,8.97805337,185.6,185.57,2.73]
[1760778969892,4.8466,185.63,185.57,2.73]
[1760778970193,8.97891177,185.62,185.57,2.73]
[1760778970387,8.97891177,185.61,185.57,2.73]
[1760778970587,4.8466,185.63,185.57,2.73]
[1760778970588,8.97891177,185.6,185.57,2.73]
[1760778970791,4.8466,185.63,185.57,2.73]
[1760778970987,8.98171222,185.62,185.57,2.68]
[1760778971185,8.98171222,185.61,185.58,2.68]
[1760778971388,4.19181572,185.6,185.58,2.68]
[1760778971595,4.8466,185.63,185.58,2.68]
[1760778971894,8.97592696,185.62,185.58,2.68]
[1760778972095,8.97592696,185.61,185.58,2.68]
[1760778972296,8.97592696,185.6,185.58,2.68]
[1760778972595,4.8466,185.63,185.59,2.68]
[1760778972796,8.9763576,185.62,185.58,2.68]
[1760778972996,8.9763576,185.61,185.58,2.68]
[1760778973191,8.9763576,185.6,185.58,2.68]
[1760778973491,4.8466,185.63,185.59,2.68]
[1760778973687,8.97572645,185.62,185.59,2.68]
[1760778973894,8.97572645,185.61,185.59,2.68]
[1760778974094,8.97572645,185.6,185.59,2.68]
[1760778975096,4.1888095,185.6,185.59,2.68]
[1760778975292,4.97066455,185.66,185.59,2.68]
[1760778975491,13.07496306,185.65,185.59,2.68]
[1760778975686,8.96867545,185.64,185.58,2.87324689]
[1760778975893,8.96867545,185.63,185.59,2.68]
[1760778976092,8.96785713,185.62,185.59,2.68]
[1760778976292,9.81646455,185.66,185.59,2.68]
[1760778976496,13.06843135,185.65,185.59,2.68]
[1760778976796,8.96420299,185.64,185.58,10.40094689]
[1760778976995,8.96420299,185.63,185.58,7.72094689]
[1760778977188,4.18338766,185.62,185.59,4.8474]
[1760778977496,4.846,185.65,185.6,2.68]
[1760778977693,8.9620491,185.64,185.6,2.68]
[1760778977997,8.9620491,185.63,185.6,2.68]
[1760778978193,8.96113367,185.62,185.6,2.68]
[1760778978498,4.846,185.65,185.58,5.55324689]
[1760778978699,8.9599922,185.64,185.58,5.55324689]
[1760778978899,8.9599922,185.63,185.59,2.68]
[1760778979098,8.9599922,185.62,185.59,2.68]
[1760778979300,4.846,185.65,185.59,2.68]
[1760778979604,8.95927671,185.64,185.59,2.68]
[1760778979791,8.95927671,185.63,185.59,2.68]
[1760778979995,4.18115044,185.62,185.59,2.68]
[1760778980196,4.846,185.65,185.58,4.8476]
[1760778980395,8.95493478,185.64,185.6,2.68]
[1760778980590,8.95493478,185.63,185.6,2.68]
[1760778980897,4.97066455,185.67,185.6,2.68]
[1760778981091,8.95567686,185.66,185.6,2.68]
[1760778981297,8.95567686,185.65,185.62,2.68]
[1760778981501,4.17934362,185.64,185.62,2.68]
[1760778981695,94.2923569,185.68,185.61,10.40004689]
[1760778981897,8.94500213,185.67,185.61,10.40004689]
[1760778982200,8.94500213,185.66,185.61,10.40004689]
[1760778982401,8.94500213,185.65,185.61,7.5268]
[1760778982602,4.8457,185.66,185.61,2.68]
[1760778982802,8.94422149,185.65,185.61,2.68]
[1760778982998,4.17177324,185.64,185.61,2.68]
[1760778983198,4.8457,185.66,185.61,2.68]
[1760778983401,8.94492423,185.65,185.59,2.68]
[1760778983701,4.8457,185.66,185.59,2.68]
[1760778983903,8.94643336,185.65,185.59,2.68]
[1760778984106,99.1376569,185.68,185.6,4.8471]
[1760778984301,8.94730399,185.67,185.6,4.8471]
[1760778984495,8.94730399,185.66,185.6,4.8471]
[1760778984700,8.94730399,185.65,185.6,7.5271]
[1760778985003,4.17255026,185.64,185.58,4.8477]
[1760778985201,8.91439892,185.63,185.59,2.68]
[1760778985401,4.09801328,185.66,185.59,2.68]
[1760778985702,8.91523285,185.65,185.59,2.68]
[1760778985902,8.91512888,185.64,185.59,2.68]
[1760778986103,4.17265325,185.63,185.59,2.68]
[1760778986298,4.8461,185.65,185.59,2.68]
[1760778986602,8.91228902,185.64,185.59,2.68]
[1760778986798,4.17127852,185.63,185.59,2.68]
[1760778987000,4.8461,185.65,185.59,2.68]
[1760778987295,8.91202563,185.64,185.59,2.68]
[1760778987500,4.17115476,185.63,185.59,2.68]
[1760778987702,4.1709023,185.62,185.56,4.8482]
[1760778987905,2.87324689,185.65,185.54,2.68]
[1760778988104,13.75652041,185.64,185.54,7.5286]
[1760778988307,8.91032041,185.63,185.54,7.5286]
[1760778988506,8.91032041,185.62,185.54,7.5286]
[1760778988708,4.8462,185.64,185.56,2.68]
[1760778988903,8.91062333,185.63,185.56,2.68]
[1760778989104,4.17037604,185.62,185.56,2.68]
[1760778989303,4.09638414,185.65,185.56,2.68]
[1760778989510,8.91121777,185.64,185.56,2.68]
[1760778989702,8.91121777,185.63,185.56,2.68]
[1760778989898,4.1706722,185.62,185.56,2.68]
[1760778990111,4.0965066,185.65,185.57,2.68]
[1760778990411,11.78244543,185.64,185.57,2.68]
[1760778990607,8.90919854,185.63,185.57,2.68]
[1760778990803,4.16977105,185.62,185.57,2.68]
[1760778991003,8.90984188,185.61,185.55,4.8483]
[1760778991204,8.90984188,185.6,185.54,2.68]
[1760778991404,8.90935678,185.59,185.51,2.68]
[1760778991610,8.90935678,185.58,185.51,2.68]
[1760778991805,2.87324689,185.61,185.51,2.68]
[1760778992008,8.90933493,185.6,185.51,2.68]
[1760778992206,8.90933493,185.59,185.51,7.5294]
[1760778992411,8.90940711,185.58,185.51,7.5294]
[1760778992606,4.16958339,185.57,185.51,7.5294]
[1760778992813,4.09552338,185.6,185.51,7.5294]
[1760778993008,8.90956067,185.59,185.51,7.5294]
[1760778993211,8.90956067,185.58,185.51,7.5294]
[1760778993412,4.1695814,185.57,185.51,7.5294]
[1760778993613,4.8479,185.58,185.51,7.5294]
[1760778993812,4.16988832,185.57,185.51,7.5294]
[1760778994011,4.8479,185.58,185.51,7.5294]
[1760778994221,4.16989167,185.57,185.51,7.5294]
[1760778994420,4.8479,185.58,185.51,7.5294]
[1760778994620,4.16999432,185.57,185.51,7.5294]
[1760778994817,4.8479,185.58,185.51,7.5294]
[1760778995016,4.17060256,185.57,185.51,7.5294]
[1760778995213,4.8479,185.58,185.51,7.5294]
[1760778995413,4.17050815,185.57,185.51,7.5294]
[1760778995618,4.8479,185.58,185.51,7.5294]
[1760778995824,4.17091238,185.57,185.51,7.5294]
[1760778996026,4.8479,185.58,185.51,7.5294]
[1760778996227,4.17107733,185.57,185.51,7.5294]
[1760778996424,4.8479,185.58,185.51,7.5294]
[1760778996620,4.17094072,185.57,185.51,7.5294]
[1760778996827,4.8479,185.58,185.51,7.5294]
[1760778997016,4.17073862,185.57,185.51,7.5294]
[1760778997220,4.8479,185.58,185.51,7.5294]
[1760778997424,4.17073892,185.57,185.51,4.8494]
[1760778997623,4.8479,185.58,185.52,2.68]
[1760778997828,4.19611001,185.57,185.51,4.8494]
[1760778998022,4.8479,185.58,185.52,2.68]
[1760778998223,4.19673344,185.57,185.52,2.68]
[1760778998424,4.8479,185.58,185.52,2.68]
[1760778998623,4.19673755,185.57,185.52,2.68]
[1760778998823,4.8479,185.58,185.52,2.68]
[1760778999026,4.19673755,185.57,185.52,4.8492]
[1760778999223,4.8473,185.6,185.53,2.68]
[1760778999422,8.93981834,185.59,185.53,2.68]
[1760778999723,8.93981834,185.58,185.54,2.68]
[1760778999924,4.1968308,185.57,185.54,2.68]
[1760779000126,4.97066455,185.61,185.54,2.68]
[1760779000325,14.11872089,185.6,185.38,139.54]
[1760779000526,4.97066455,185.61,185.44,2.68]
[1760779000527,2.87324689,185.54,185.44,2.68]
[1760779000719,4.8494,185.52,185.44,2.68]
[1760779000920,8.9402235,185.51,185.44,2.68]
[1760779001119,8.93965989,185.5,185.44,2.68]
[1760779001328,4.8501,185.49,185.4,7.4624]
[1760779002226,4.8501,185.49,185.4,2.61]
[1760779005134,2.87324689,185.51,185.4,7.4624]
[1760779005326,2.87324689,185.5,185.4,7.4624]
[1760779005730,4.8504,185.48,185.4,2.61]
[1760779005925,2.87324689,185.47,185.4,2.61]
[1760779006531,4.8504,185.48,185.4,2.61]
[1760779007730,2.87324689,185.49,185.37,2.61]
[1760779007934,2.87324689,185.46,185.37,2.61]
[1760779009835,7.72484689,185.44,185.37,2.61]
[1760779010235,4.8519,185.43,185.37,2.61]
[1760779011838,2.87324689,185.44,185.33,0.93868853]
[1760779011839,2.87324689,185.44,185.34,2.61]
[1760779012935,4.8517,185.43,185.34,2.61]
[1760779013534,4.8517,185.43,185.34,7.4638]
[1760779013752,2.87324689,185.44,185.35,2.61]
[1760779014040,4.8512,185.45,185.37,2.61]
[1760779014236,4.8512,185.45,185.37,7.4632]
[1760779014439,4.8512,185.45,185.38,2.61]
[1760779015142,4.8506,185.47,185.38,2.61]
[1760779015540,4.8506,185.47,185.4,2.61]
[1760779016937,4.8502,185.49,185.4,2.61]
[1760779017538,4.8502,185.49,185.35,20.84]
[1760779017539,4.8502,185.49,185.42,2.87324689]
[1760779017846,4.8502,185.49,185.42,5.48324689]
[1760779019235,4.8502,185.49,185.43,2.61]
[1760779019439,4.8496,185.51,185.43,2.61]
[1760779019638,6.62352472,185.62,185.43,2.61]
[1760779019639,2.87324689,185.56,185.45,2.87324689]
[1760779019844,7.02375684,185.56,185.45,5.48324689]
[1760779020044,2.87324689,185.56,185.45,5.48324689]
[1760779020540,2.87324689,185.53,185.42,2.87324689]
[1760779020946,2.87324689,185.53,185.41,7.4621]
[1760779021340,2.87324689,185.5,185.41,7.4621]
[1760779021735,2.87324689,185.47,185.36,62.0]
[1760779021934,2.87324689,185.47,185.36,2.61]
[1760779022140,2.87324689,185.49,185.38,2.61]
[1760779022341,4.8509,185.46,185.38,2.61]
[1760779023234,4.8504,185.48,185.39,4.8525]
[1760779023443,6.69154749,185.48,185.41,1.84114749]
[1760779023647,6.69154749,185.48,185.42,2.61]
[1760779025042,4.8504,185.48,185.42,2.61]
[1760779027842,1.84114749,185.5,185.43,4.70114749]
[1760779028942,4.10648536,185.58,185.43,2.86]
[1760779028943,4.21776096,185.55,185.43,2.86]
[1760779029144,9.47440664,185.57,185.49,2.86]
[1760779029348,1.84114749,185.57,185.5,2.86]
[1760779029548,1.84114749,185.59,185.51,1.84114749]
[1760779029851,4.22029562,185.58,185.51,1.84114749]
[1760779030148,4.22034835,185.57,185.52,2.86]
[1760779030349,4.629022,185.61,185.4,75.63835888]
[1760779030350,6.68814749,185.61,185.54,2.86]
[1760779030547,4.22193304,185.6,185.54,2.86]
[1760779030741,6.68764749,185.63,185.55,1.84114749]
[1760779030947,4.22236841,185.62,185.55,1.84114749]
[1760779031144,6.68764749,185.63,185.56,2.72]
[1760779031145,4.22236841,185.61,185.56,2.72]
[1760779031447,4.8459,185.66,185.58,2.72]
[1760779031648,96.13350439,185.68,185.61,1.84114749]
[1760779031856,4.22463936,185.67,185.61,1.84114749]
[1760779032050,1.84114749,185.7,185.61,1.84114749]